Workbook

Sheet PastureRental
B2: Pasture Rental Rate Calculator
B11: INTRODUCTION
B12: This tool was developed to assist landowner and tenant in determining an equitable grazing lease by considering three levels of pasture productivity. All costs and services provided by each party are taken into consideration and pricing per acre, per head, per AUM, or per pound of gain are reported.
B14: INSTRUCTIONS FOR THE USER:
B15: Be sure to "Enable Content" and "Enable Macros" for the spreadsheet to function correctly. Blue values are inputs that should be changed from the defaults to match your operation. Black values are automatically calculated.
B18: The companion publication with full instructions and explanations can be found by clicking | L18: HERE
B22: FOR MORE INFORMATION:
B24: Levi A. Russell, PhD
B25: Assistant Professor & Extension Livestock Economist
B26: University of Georgia
B27: lrussell@uga.edu
B28: 706-521-4029
B31: Adapted from a spreadsheet developed by:
B33: Robin Reid | H33: Mykel Taylor Ph.D.
B34: Extension Associate | H34: Assistant Professor
B35: Kansas State University | H35: Kansas State University
B36: robinreid@ksu.edu | H36: mtaylor@ksu.edu
B37: 785-532-0964 | H37: 785-532-3033
B39: Original spreadsheet can be found by clicking | G39: HERE

Sheet Stocking Rate
A1: Calculating a Stocking Rate
A3: Inputs
A4: Grazing Period Start | B4: 2017-10-16
A5: Grazing Period End | B5: 2018-03-15
A6: Grazing Days | B6: =B5-B4 -> 150
A7: Total Acres of Pasture | B7: 160
C9: Unfavorable Year | D9: Normal Year | E9: Favorable Year | G9: Assumptions:
A10: Pounds of Production per Acre | C10: 6000 | D10: 9000 | E10: 11000
A11: Pounds of Grazed Forage per Acre | C11: =C10*$G$11 -> 1500 | D11: =D10*$G$11 -> 2250 | E11: =E10*$G$11 -> 2750 | G11: 0.25 | H11: Harvest Efficiency
A12: AUM's available/Acre | C12: =C11/G12 -> 1.643835616 | D12: =D11/G12 -> 2.465753425 | E12: =E11/G12 -> 3.01369863 | G12: 912.5 | H12: Pounds per AUM
A13: Total AUM's for pasture | C13: =C12*$B$7 -> 263.0136986 | D13: =D12*$B$7 -> 394.5205479 | E13: =E12*$B$7 -> 482.1917808 | G13: 0.03 | H13: Forage Consumed per Day (Percent of Body Weight)
A14: Consumed pounds of forage on pasture | C14: =C11*$B$7 -> 240000 | D14: =D11*$B$7 -> 360000 | E14: 440000
C18: Forage Consumed per Day (lbs) | D18: Total Forage For Grazing Period (lbs) | F18: Ideal Stocking Rate
A19: COW/CALF PAIRS | C19: =G13*(B20+AVERAGE(B21:B22)) -> 49.5 | D19: =C19*B6 -> 7425 | G19: Unfavorable Year | H19: Normal Year | I19: Favorable Year
A20: Mature Cow Weight | B20: 1250 | F20: Number of Cow/Calf Pairs | G20: =IF(B27>0,(C14/($D$19+$D$23*(1/$B$27))),(C14/D19)) -> 31.75964302 | H20: =IF(B27>0,(D14/($D$19+$D$23*(1/$B$27))),(D14/D19)) -> 47.63946453 | I20: =IF(B27>0,(E14/($D$19+$D$23*(1/$B$27))),(E14/D19)) -> 58.22601221
A21: Calf Starting Weight | B21: 250 | F21: Number of Bulls | G21: =IF(B27>0,(C14/($D$19+$D$23*(1/$B$27)))*(1/$B$27),0) -> 1.270385721 | H21: =IF(B27>0,(D14/($D$19+$D$23*(1/$B$27)))*(1/$B$27),0) -> 1.905578581 | I21: =IF(B27>0,(E14/($D$19+$D$23*(1/$B$27)))*(1/$B$27),0) -> 2.329040488
A22: Calf Ending Weight | B22: 550
A23: BULLS | C23: =G13*B24 -> 54 | D23: =C23*(B26-B25) -> 3294 | F23: Acres per Cow/Calf Pair & Proportion of Bull | G23: =IF($B$27>0,($B$7/(G20+(1/$B$27)*G21)),$B$7/G20) -> 5.029792332 | H23: =IF($B$27>0,($B$7/(H20+(1/$B$27)*H21)),$B$7/H20) -> 3.353194888 | I23: 2.74352309
A24: Average Weight | B24: 1800
A25: Date In | B25: 2017-06-01
A26: Date Out | B26: 2017-08-01
A27: # of Cows per Bull | B27: 25
A28: OR | F28: OR
C29: Forage Consumed per Day (lbs) | D29: Total Forage For Grazing Period (lbs) | F29: Ideal Stocking Rate
A30: STOCKER CATTLE | C30: =(((B32+B31)/2)*G13) -> 19.5 | D30: =C30*B6 -> 2925 | F30: Stocker Cattle | G30: =C14/$D$30 -> 82.05128205 | H30: =D14/$D$30 -> 123.0769231 | I30: =E14/$D$30 -> 150.4273504
A31: Starting Weight | B31: 500
A32: Ending Weight | B32: 800 | F32: Acres per Stocker | G32: =$B$7/G30 -> 1.95 | H32: =$B$7/H30 -> 1.3 | I32: =$B$7/I30 -> 1.063636364
A33: Average Daily Gain | B33: =(B32-B31)/B6 -> 2

Sheet Stocker Cattle Budget
A1: Budgeting for Stocker Cattle Grazing-Inputs | O1: Internal Notes:
A3: Inputs from Stocking Rate Page | H3: Expected Cattle Returns
A4: Grazing Period Start | B4: ='Stocking Rate'!B4 -> 2017-10-16 | J4: Per Head
A5: Grazing Period End | B5: ='Stocking Rate'!B5 -> 2018-03-15 | H5: Beginning Weight (lbs) | I5: ='Stocking Rate'!B31 -> 500 | J5: =-I5/100*I6 -> -675
A6: Grazing Days | B6: =B5-B4 -> 150 | H6: Beginning Cost ($/cwt) | I6: 135
A7: Total Acres of Pasture | B7: ='Stocking Rate'!B7 -> 160 | H7: Death Loss | I7: 0.01 | J7: =J5*I7 -> -6.75
H8: Ending Weight (lbs) | I8: ='Stocking Rate'!B32 -> 800 | J8: =I8/100*I9 -> 920
A9: Growing Season | B9: Unfavorable | C9: Normal | D9: Favorable | H9: Expected Ending Price ($/cwt) | I9: 115
A10: # of head | B10: =ROUND('Stocking Rate'!G30,0) -> 82 | C10: =ROUND('Stocking Rate'!H30,0) -> 123 | D10: =ROUND('Stocking Rate'!I30,0) -> 150
A11: Acres per Head | B11: =B7/B10 -> 1.951219512 | C11: =B7/C10 -> 1.300813008 | D11: =B7/D10 -> 1.066666667 | H11: Gross Income per head | J11: =SUM(J5:J9) -> 238.25
A13: Livestock Costs
I14: Total for Herd | L14: Cost Paid by
A15: Category: | H15: $/head | I15: Unfavorable | J15: Normal | K15: Favorable | L15: Producer % | M15: Landowner %
A16: Harvested Forage | B16: 0 | C16: per ton | D16: x | E16: 0 | F16: total lbs | G16: = | H16: =(B16/2000)*E16 -> 0 | I16: =H16*B10 -> 0 | J16: =H16*C10 -> 0 | K16: =H16*D10 -> 0 | L16: 1 | M16: =1-L16 -> 0
A17: Grain/Protein Supplements | B17: 150 | C17: per ton | D17: x | E17: 1200 | F17: total lbs | G17: = | H17: =(B17/2000)*E17 -> 90 | I17: =$H$17*B10 -> 7380 | J17: =$H$17*C10 -> 11070 | K17: =$H$17*D10 -> 13500 | L17: 1 | M17: =1-L17 -> 0
A18: Mineral | B18: 550 | C18: per ton | D18: x | E18: =0.25*B6 -> 37.5 | F18: total lbs | G18: = | H18: =(B18/2000)*E18 -> 10.3125 | I18: =$H$18*B10 -> 845.625 | J18: =$H$18*C10 -> 1268.4375 | K18: =$H$18*D10 -> 1546.875 | L18: 1 | M18: 0
A19: Labor (towards cattle) | B19: 20 | C19: per hour | D19: x | E19: 1.2 | F19: hours | G19: = | H19: =B19*E19 -> 24 | I19: =J19-(0.5*(J19-(H19*B10))) -> 2460 | J19: =$H$19*C10 -> 2952 | K19: =J19+(0.5*((H19*D10)-J19)) -> 3276 | L19: 1 | M19: 0
A20: Vet Medicine/Drugs | H20: 6 | I20: =$H$20*B10 -> 492 | J20: =$H$20*C10 -> 738 | K20: =$H$20*D10 -> 900 | L20: 1 | M20: 0
A21: Marketing | H21: 25 | I21: =$H$21*B10 -> 2050 | J21: =$H$21*C10 -> 3075 | K21: =$H$21*D10 -> 3750 | L21: 1 | M21: 0
A22: Utilities,Gas, Fuel, Oil | H22: 5 | I22: =J22-(0.5*(J22-(H22*B10))) -> 512.5 | J22: =$H$22*C10 -> 615 | K22: =J22+(0.5*((H22*D10)-J22)) -> 682.5 | L22: 1 | M22: 0
A23: Machinery charge | H23: 8 | I23: =J23-(0.5*(J23-(H23*B10))) -> 820 | J23: =$H$23*C10 -> 984 | K23: =J23+(0.5*((H23*D10)-J23)) -> 1092 | L23: 1 | M23: 0
A24: Cash Interest on Cattle Investment | B24: =-J5 -> 675 | C24: purchased cost | D24: x | E24: 0.05 | F24: operating interest | H24: =B24*E24*(B6/365) -> 13.86986301 | I24: =$H$24*B10 -> 1137.328767 | J24: =$H$24*C10 -> 1705.993151 | K24: =$H$24*D10 -> 2080.479452 | L24: 1 | M24: 0
A25: Miscellaneous | H25: 2 | I25: =$H$25*B10 -> 164 | J25: =$H$25*C10 -> 246 | K25: =$H$25*D10 -> 300 | L25: 1 | M25: 0
A26: Fixed Overhead | B26: Total dollars | H26: -- | I26: =SUM(B27:B29) -> 260 | J26: =SUM(B27:B29) -> 260 | K26: =SUM(B27:B29) -> 260 | L26: 1 | M26: 0
A27: Taxes | B27: 30 | H27: Total Costs | I27: =SUM(I16:I26) -> 16121.45377 | J27: =SUM(J16:J26) -> 22914.43065 | K27: =SUM(K16:K26) -> 27387.85445
A28: Insurance | B28: 30 | H28: Per Head | I28: =I27/B10 -> 196.6030947 | J28: =J27/C10 -> 186.2961842 | K28: =K27/D10 -> 182.5856963
A29: Depreciation | B29: 200 | H29: Per Head plus beg. Value | I29: =I28+-$J$5 -> 871.6030947 | J29: =J28+-$J$5 -> 861.2961842 | K29: 857.5856963
A31: Land Costs
H32: $/acre | I32: Total for Pasture | J32: Cost Paid by
A33: Category: | J33: Producer % | K33: Landowner %
A34: Water Source Maintenance | H34: 0.89 | I34: =H34*$B$7 -> 142.4 | J34: 0 | K34: =1-J34 -> 1
A35: Spraying Weeds | H35: 3.55 | I35: =H35*$B$7 -> 568 | J35: 1 | K35: 0
A36: Fertilizer | H36: 0 | I36: 0 | J36: 1 | K36: 0
A37: Burning Pasture | H37: 0.56 | I37: =H37*$B$7 -> 89.6 | J37: 1 | K37: 0
A38: Maintaining Fence | H38: 2.84 | I38: =H38*$B$7 -> 454.4 | J38: 1 | K38: 0
A39: New Fence Construction | H39: 2 | I39: =H39*$B$7 -> 320 | J39: 0 | K39: 1
A40: Corrals | H40: 0.45 | I40: =H40*$B$7 -> 72 | J40: 1 | K40: 0
A41: Other land costs | H41: 0 | I41: =H41*$B$7 -> 0 | J41: 1 | K41: 0
A42: Total Costs | H42: =SUM(H34:H41) -> 10.29 | I42: =SUM(I34:I41) -> 1646.4
A44: Interest on Land | B44: 1500 | C44: Land Value per acre | E44: 0.01 | F44: rent/value ratio | G44: = | H44: =B44*E44 -> 15 | I44: =H44*B7 -> 2400
A48: Budgeting for Stocker Cattle Grazing -Results
A50: Graphical Depiction of Rental Rates | G50: Budgeting a Rental Rate-Stocker Cattle
I51: Unfavorable | J51: Normal | K51: Favorable
G52: Producers Share of Cost | I52: =SUMPRODUCT(I16:I26,$L$16:$L$26)+SUMPRODUCT($I$34:$I$41,$J$34:$J$41) -> 17305.45377 | J52: =SUMPRODUCT(J16:J26,$L$16:$L$26)+SUMPRODUCT($I$34:$I$41,$J$34:$J$41) -> 24098.43065 | K52: =SUMPRODUCT(K16:K26,$L$16:$L$26)+SUMPRODUCT($I$34:$I$41,$J$34:$J$41) -> 28571.85445
G53: Gross Income | I53: =J11*B10 -> 19536.5 | J53: =J11*C10 -> 29304.75 | K53: =J11*D10 -> 35737.5
G54: Return over Producer Cost | I54: =I53-I52 -> 2231.046233 | J54: =J53-J52 -> 5206.319349 | K54: =K53-K52 -> 7165.645548
H56: Amount Producer Could Afford to Pay
H57: Rent per Acre | I57: =I54/$B$7 -> 13.94403896 | J57: =J54/$B$7 -> 32.53949593 | K57: =K54/$B$7 -> 44.78528467
H58: Rent per Head | I58: =I54/B10 -> 27.20788089 | J58: =J54/C10 -> 42.32779959 | K58: =K54/D10 -> 47.77097032
H59: Rent per Pound of Gain | I59: =I54/(($I$8-$I$5)*B10) -> 0.0906929363 | J59: =J54/(($I$8-$I$5)*C10) -> 0.1410926653 | K59: =K54/(($I$8-$I$5)*D10) -> 0.1592365677
H60: Rent per AUM | I60: =I54/'Stocking Rate'!C13 -> 8.482623698 | J60: =J54/'Stocking Rate'!D13 -> 13.19657335 | K60: =K54/'Stocking Rate'!E13 -> 14.86057173
G62: Landowner Share of Cost | I62: =SUMPRODUCT(I16:I26,$M$16:$M$26)+SUMPRODUCT($I$34:$I$41,$K$34:$K$41)+$I$44 -> 2862.4 | J62: =SUMPRODUCT(J16:J26,$M$16:$M$26)+SUMPRODUCT($I$34:$I$41,$K$34:$K$41)+$I$44 -> 2862.4 | K62: =SUMPRODUCT(K16:K26,$M$16:$M$26)+SUMPRODUCT($I$34:$I$41,$K$34:$K$41)+$I$44 -> 2862.4
G63: Gross Income | I63: =I53 -> 19536.5 | J63: =J53 -> 29304.75 | K63: 35737.5
G64: Return over Landowner Cost | I64: =I63-I62 -> 16674.1 | J64: =J63-J62 -> 26442.35 | K64: 32875.1
H66: Landowner Cost
H67: Rent per Acre | I67: =I62/$B$7 -> 17.89 | J67: =J62/$B$7 -> 17.89 | K67: 17.89
H68: Rent per Head | I68: =I62/B10 -> 34.90731707 | J68: =J62/C10 -> 23.27154472 | K68: =K62/D10 -> 19.08266667
H69: Rent per Pound of Gain | I69: =I62/(($I$8-$I$5)*B10) -> 0.1163577236 | J69: =J62/(($I$8-$I$5)*C10) -> 0.07757181572 | K69: =K62/(($I$8-$I$5)*D10) -> 0.06360888889
H70: Rent per AUM | I70: =I62/'Stocking Rate'!C13 -> 10.88308333 | J70: =J62/'Stocking Rate'!D13 -> 7.255388889 | K70: =K62/'Stocking Rate'!E13 -> 5.936227273
A77: Budgeting for Stocker Cattle Grazing -Production Risk
A80: Production Variables | G80: Stocker Cattle Production Risk
A81: Death Loss | B81: Normal | C81: =IF(B81="Normal", I7, IF(B81="1% lower", (MAX(I7-0.01,0)),IF(B81="5% lower", (MAX(I7-0.05,0)),IF(B81="1% higher", (I7+0.01),IF(B81="5% higher", (I7+0.05),0))))) -> 0.01 | I81: Unfavorable | J81: Normal | K81: Favorable
A82: Stocker Ending Weight | B82: 1% higher | C82: =IF(B82="Normal",I8,IF(B82="1% lower",(I8*0.99),IF(B82="5% lower",(I8*0.95),IF(B82="1% higher",(I8*1.01),IF(B82="5% higher",(I8*1.05),FALSE))))) -> 808 | G82: Producers Share of Cost | I82: =SUMPRODUCT(I16:I26,$L$16:$L$26)+SUMPRODUCT($I$34:$I$41,$J$34:$J$41) -> 17305.45377 | J82: =SUMPRODUCT(J16:J26,$L$16:$L$26)+SUMPRODUCT($I$34:$I$41,$J$34:$J$41) -> 24098.43065 | K82: 28571.85445
A83: Stocker Selling Price | B83: 5% lower | C83: =IF(B83="Normal",I9,IF(B83="1% lower",(I9*0.99),IF(B83="5% lower",(I9*0.95),IF(B83="1% higher",(I9*1.01),IF(B83="5% higher",(I9*1.05),FALSE))))) -> 109.25 | G83: Gross Income | I83: =($J$5+($C$81*$J$5)+($C$82*$C$83/100))*B10 -> 16481.18 | J83: =($J$5+($C$81*$J$5)+($C$82*$C$83/100))*C10 -> 24721.77 | K83: 30148.5
G84: Return over Producer Cost | I84: =I83-I82 -> -824.2737671 | J84: =J83-J82 -> 623.3393493 | K84: =K83-K82 -> 1576.645548
H86: Amount Producer Could Afford to Pay
H87: Rent per Acre | I87: =I84/$B$7 -> -5.151711045 | J87: =J84/$B$7 -> 3.895870933 | K87: =K84/$B$7 -> 9.854034675
H88: Rent per Head | I88: =I84/B10 -> -10.05211911 | J88: =J84/C10 -> 5.067799588 | K88: 10.51097032
H89: Rent per Pound of Gain | I89: =I84/(($I$8-$I$5)*B10) -> -0.0335070637 | J89: =J84/(($I$8-$I$5)*C10) -> 0.01689266529 | K89: 0.03503656773
H90: Rent per AUM | I90: =I84/'Stocking Rate'!C30 -> -42.2704496 | J90: =J84/'Stocking Rate'!D13 -> 1.579992101 | K90: =K84/'Stocking Rate'!E13 -> 3.269747869
G92: Landowner Share of Cost | I92: =SUMPRODUCT(I16:I26,$M$16:$M$26)+SUMPRODUCT($I$34:$I$41,$K$34:$K$41)+$I$44 -> 2862.4 | J92: =SUMPRODUCT(J16:J26,$M$16:$M$26)+SUMPRODUCT($I$34:$I$41,$K$34:$K$41)+$I$44 -> 2862.4 | K92: =SUMPRODUCT(K16:K26,$M$16:$M$26)+SUMPRODUCT($I$34:$I$41,$K$34:$K$41)+$I$44 -> 2862.4
G93: Gross Income | I93: =I83 -> 16481.18 | J93: =J83 -> 24721.77 | K93: 30148.5
G94: Return over Landowner Cost | I94: =I93-I92 -> 13618.78 | J94: =J93-J92 -> 21859.37 | K94: 27286.1
H96: Landowner Cost
H97: Rent per Acre | I97: =I92/$B$7 -> 17.89 | J97: =J92/$B$7 -> 17.89 | K97: 17.89
H98: Rent per Head | I98: =I92/B10 -> 34.90731707 | J98: =J92/C10 -> 23.27154472 | K98: =K92/D10 -> 19.08266667
H99: Rent per Pound of Gain | I99: =I92/(($I$8-$I$5)*B10) -> 0.1163577236 | J99: =J92/(($I$8-$I$5)*C10) -> 0.07757181572 | K99: 0.06360888889
H100: Rent per AUM | I100: =I92/'Stocking Rate'!C13 -> 10.88308333 | J100: =J92/'Stocking Rate'!D13 -> 7.255388889 | K100: =K92/'Stocking Rate'!E13 -> 5.936227273

Sheet CowCalf Budget
A1: Budgeting for Cow/Calf Grazing- Inputs | M1: Internal Notes:
A3: Inputs from Stocking Rate Page | H3: Expected Cattle Returns
A4: Grazing Period Start | B4: ='Stocking Rate'!B4 -> 2017-10-16 | J4: Per Head
A5: Grazing Period End | B5: ='Stocking Rate'!B5 -> 2018-03-15 | H5: Cow Yearly Cost (w/o pasture) | J5: 500 | M5: Cow/Calf Livestock Budget
A6: Grazing Days | B6: =B5-B4 -> 150 | M6: $1,123.36 total cost +226 cull cow income + 158.8 pasture cost (leave heifer cost in)=
A7: Total Acres of Pasture | B7: ='Stocking Rate'!B7 -> 160 | H7: Weaning Percentage | I7: 0.89 | M7: =-1123.36+226+158.8 -> -738.56
H8: Ending Weight (lbs) | I8: ='Stocking Rate'!B22 -> 550 | J8: =I8/100*I9*I7 -> 660.825 | M8: Pasture cost w/o taking heifer out 180.6/(1400+.16*750+.04*1800)
A9: Growing Season | B9: Unfavorable | C9: Normal | D9: Favorable | H9: Expected Ending Price ($/cwt) | I9: 135 | M9: =180.6/(1400+0.16*750+0.04*1800) -> 0.1134422111 | N9: per pound
A10: # of head | B10: =ROUND('Stocking Rate'!G20,0) -> 32 | C10: =ROUND('Stocking Rate'!H20,0) -> 48 | D10: =ROUND('Stocking Rate'!I20,0) -> 58 | M10: =M9*1400 -> 158.8190955
A11: Acres per Head | B11: =B7/B10 -> 5 | C11: =B7/C10 -> 3.333333333 | D11: =B7/D10 -> 2.75862069 | H11: Gross Income per head | J11: =J8-J5 -> 160.825
A13: Land Costs
H14: $/acre | I14: Total for Pasture | J14: Cost Paid by
A15: Category: | J15: Producer % | K15: Landowner %
A16: Water Source Maintenance | H16: 0.89 | I16: =H16*$B$7 -> 142.4 | J16: 0 | K16: =1-J16 -> 1
A17: Spraying Weeds | H17: 3.55 | I17: =H17*$B$7 -> 568 | J17: 1 | K17: 0
A18: Fertilizer | H18: 0 | I18: 0 | J18: 1 | K18: 0
A19: Burning Pasture | H19: 0.56 | I19: =H19*$B$7 -> 89.6 | J19: 1 | K19: 0
A20: Maintaining Fence | H20: 1.47 | I20: =H20*$B$7 -> 235.2 | J20: 1 | K20: 0
A21: New Fence Construction | H21: 2 | I21: =H21*$B$7 -> 320 | J21: 0 | K21: 1
A22: Corrals | H22: 0.45 | I22: =H22*$B$7 -> 72 | J22: 1 | K22: 0
A23: Other land costs | H23: 0 | I23: =H23*$B$7 -> 0 | J23: 1 | K23: 0
A24: Total Costs | H24: =SUM(H16:H23) -> 8.92 | I24: =SUM(I16:I23) -> 1427.2
A26: Interest on Land | B26: 1500 | C26: Land Value per acre | E26: 0.01 | F26: rent/value ratio | G26: = | H26: =B26*E26 -> 15 | I26: =H26*B7 -> 2400
A28: Budgeting for Cow/Calf Grazing -Results
A30: Graphical Depiction of Rental Rates | G30: Budgeting a Rental Rate-Cow/Calf Pairs | O30: 15% lower
I31: Unfavorable | J31: Normal | K31: Favorable | O31: 10% lower
G32: Producers Share of Cost | I32: =SUMPRODUCT($I$16:$I$23,$J$16:$J$23) -> 964.8 | J32: =SUMPRODUCT($I$16:$I$23,$J$16:$J$23) -> 964.8 | K32: =SUMPRODUCT($I$16:$I$23,$J$16:$J$23) -> 964.8 | O32: 5% lower
G33: Gross Income | I33: =J11*B10 -> 5146.4 | J33: =J11*C10 -> 7719.6 | K33: =J11*D10 -> 9327.85 | O33: Normal
G34: Return over Producer Cost | I34: =I33-I32 -> 4181.6 | J34: =J33-J32 -> 6754.8 | K34: =K33-K32 -> 8363.05 | O34: 5% higher
O35: 10% higher
H36: Amount Producer Could Afford to Pay | O36: 15% higher
H37: Rent per Acre | I37: =I34/$B$7 -> 26.135 | J37: =J34/$B$7 -> 42.2175 | K37: =K34/$B$7 -> 52.2690625
H38: Rent per Pair | I38: =I34/B10 -> 130.675 | J38: =J34/C10 -> 140.725 | K38: =K34/D10 -> 144.1905172 | O38: 5% lower
H39: Rent per AUM | I39: =I34/'Stocking Rate'!C13 -> 15.89879167 | J39: =J34/'Stocking Rate'!D13 -> 17.12154167 | K39: =K34/'Stocking Rate'!E13 -> 17.34382528 | O39: 1% lower
O40: Normal
G41: Landowner Share of Cost | I41: =SUMPRODUCT($I$16:$I$23,$K$16:$K$23)+$I$26 -> 2862.4 | J41: =SUMPRODUCT($I$16:$I$23,$K$16:$K$23)+$I$26 -> 2862.4 | K41: =SUMPRODUCT($I$16:$I$23,$K$16:$K$23)+$I$26 -> 2862.4 | O41: 1% higher
G42: Gross Income | I42: =I33 -> 5146.4 | J42: =J33 -> 7719.6 | K42: =K33 -> 9327.85 | O42: 5% higher
G43: Return over Landowner Cost | I43: =I42-I41 -> 2284 | J43: =J42-J41 -> 4857.2 | K43: 6465.45
H45: Landowner Cost
H46: Rent per Acre | I46: =I41/$B$7 -> 17.89 | J46: =J41/$B$7 -> 17.89 | K46: 17.89
H47: Rent per Pair | I47: =I41/B10 -> 89.45 | J47: =J41/C10 -> 59.63333333 | K47: =K41/D10 -> 49.35172414
H48: Rent per AUM | I48: =I41/'Stocking Rate'!C13 -> 10.88308333 | J48: =J41/'Stocking Rate'!D13 -> 7.255388889 | K48: =K41/'Stocking Rate'!E13 -> 5.936227273
A54: Budgeting for Cow/Calf Grazing -Production Risk
A57: Production Variables | G57: Table 4: Budgeting a Rental Rate
A58: Weaning Percentage | B58: 5% lower | C58: =IF(B58="Normal", I7, IF(B58="1% lower", (I7-0.01),IF(B58="5% lower", (I7-0.05),IF(B58="1% higher", (I7+0.01),IF(B58="5% higher", (I7+0.05),0))))) -> 0.84 | I58: Unfavorable | J58: Normal | K58: Favorable
A59: Selling Calf Weight | B59: 5% higher | C59: =IF(B59="Normal",I8,IF(B59="1% lower",(I8*0.99),IF(B59="5% lower",(I8*0.95),IF(B59="1% higher",(I8*1.01),IF(B59="5% higher",(I8*1.05),FALSE))))) -> 577.5 | G59: Producers Share of Cost | I59: =SUMPRODUCT($I$16:$I$23,$J$16:$J$23) -> 964.8 | J59: =SUMPRODUCT($I$16:$I$23,$J$16:$J$23) -> 964.8 | K59: =SUMPRODUCT($I$16:$I$23,$J$16:$J$23) -> 964.8
A60: Selling Calf Price | B60: 5% higher | C60: =IF(B60="Normal",I9,IF(B60="1% lower",(I9*0.99),IF(B60="5% lower",(I9*0.95),IF(B60="1% higher",(I9*1.01),IF(B60="5% higher",(I9*1.05),FALSE))))) -> 141.75 | G60: Gross Income | I60: =(($C$58*$C$59*$C$60/100)-$C$61)*B10 -> 6004.136 | J60: =(($C$58*$C$59*$C$60/100)-$C$61)*C10 -> 9006.204 | K60: 10882.4965
A61: Yearly Cow Cost | B61: Normal | C61: =IF(B61="Normal",J5,IF(B61="1% lower",(J5*0.99),IF(B61="5% lower",(J5*0.95),IF(B61="1% higher",(J5*1.01),IF(B61="5% higher",(J5*1.05),FALSE))))) -> 500 | G61: Return over Producer Cost | I61: =I60-I59 -> 5039.336 | J61: =J60-J59 -> 8041.404 | K61: =K60-K59 -> 9917.6965
H63: Amount Producer Could Afford to Pay
H64: Rent per Acre | I64: =I61/$B$7 -> 31.49585 | J64: =J61/$B$7 -> 50.258775 | K64: =K61/$B$7 -> 61.98560312
H65: Rent per Pair | I65: =I61/B10 -> 157.47925 | J65: =J61/C10 -> 167.52925 | K65: 170.9947672
H66: Rent per AUM | I66: =I61/'Stocking Rate'!C13 -> 19.15997542 | J66: =J61/'Stocking Rate'!D13 -> 20.38272542 | K66: =K61/'Stocking Rate'!E13 -> 20.56795013
G68: Landowner Share of Cost | I68: =SUMPRODUCT($I$16:$I$23,$K$16:$K$23)+$I$26 -> 2862.4 | J68: =SUMPRODUCT($I$16:$I$23,$K$16:$K$23)+$I$26 -> 2862.4 | K68: =SUMPRODUCT($I$16:$I$23,$K$16:$K$23)+$I$26 -> 2862.4
G69: Gross Income | I69: =I60 -> 6004.136 | J69: =J60 -> 9006.204 | K69: =K60 -> 10882.4965
G70: Return over Landowner Cost | I70: =I69-I68 -> 3141.736 | J70: =J69-J68 -> 6143.804 | K70: 8020.0965
H72: Landowner Cost
H73: Rent per Acre | I73: =I68/$B$7 -> 17.89 | J73: =J68/$B$7 -> 17.89 | K73: 17.89
H74: Rent per Pair | I74: =I68/B10 -> 89.45 | J74: =J68/C10 -> 59.63333333 | K74: 49.35172414
H75: Rent per AUM | I75: =I68/'Stocking Rate'!C13 -> 10.88308333 | J75: =J68/'Stocking Rate'!D13 -> 7.255388889 | K75: =K68/'Stocking Rate'!E13 -> 5.936227273
